Workbook

Sheet Sheet1
A1: FOI 215464 - S106
A3: Year | B3: FOI Ref | C3: App No. | D3: 1. Value of Payment (Received) | E3: 2. Purpose of Payment | F3: 3. Amount of Payment Spent | G3: 4. Amount comitted but not spent | H3: 5. Amount not comitted or spent | I3: 6. Amount Repaid | J3: 7. Reason for repayment | K3: Notes
A4: 2008-09 | B4: a. | C4: HS/FA/07/00776 | D4: £1,020 | E4: Local Sustainable Access Improvement | F4: £1,020 | G4: £0 | H4: £0 | I4: £0 | J4: n/a
A5: 2009-10 | B5: b. | C5: HS/FA/04/01084 | D5: £21,500 | E5: Bus Stop Cont. (ESCC) | F5: £21,500 | G5: £0 | H5: £0 | I5: £0 | J5: n/a
A6: 2009-10 | B6: b. | C6: HS/FA/04/01084 | D6: £1,000 | E6: Footpath Closure Cont. | F6: £1,000 | G6: £0 | H6: £0 | I6: £0 | J6: n/a
A7: 2009-10 | B7: b. | C7: HS/FA/04/01084 | D7: £1,000 | E7: Walking Bus Cont. | F7: £1,000 | G7: £0 | H7: £0 | I7: £0 | J7: n/a
A8: 2009-10 | B8: b. | C8: HS/FA/04/01084 | D8: £60,450 | E8: Woodland Cont. | F8: £53,490 | G8: £6,960 | H8: £0 | I8: £0 | J8: n/a
A9: 2009-10 | B9: b. | C9: HS/FA/06/00969 | D9: £20,000 | E9: Play Provision | F9: £15,597 | G9: £0 | H9: £4,403 | I9: £0 | J9: n/a
A10: 2009-10 | B10: b. | C10: HS/FA/08/000377 | D10: £10,000 | E10: Play Provision | F10: £0 | G10: £0 | H10: £10,000 | I10: £0 | J10: n/a
A11: 2009-10 | B11: b. | C11: HS/OA/01/00088 | D11: £15,000 | E11: Transport Contr. (ESCC) | F11: £15,000 | G11: £0 | H11: £0 | I11: £0 | J11: n/a
A12: 2010-11 | B12: c. | C12: HS/FA/03/00340 | D12: £60,852 | E12: Open Space Maintenance | F12: £28,950 | G12: =D12-F12 -> £31,903 | H12: £0 | I12: £0 | J12: n/a
A13: 2010-11 | B13: c. | C13: HS/FA/06/00983 | D13: £20,000 | E13: CCTV | F13: £20,000 | G13: £0 | H13: £0 | I13: £0 | J13: n/a
A14: 2010-11 | B14: c. | C14: HS/FA/06/00983 | D14: £20,000 | E14: Open Space Maintenance | F14: £20,000 | G14: £0 | H14: £0 | I14: £0 | J14: n/a
A15: 2010-11 | B15: c. | C15: HS/FA/08/00377 | D15: £6,749 | E15: Public Art Cont. | F15: =D15 -> £6,749 | G15: £0 | H15: £0 | I15: £0 | J15: n/a
A16: 2010-11 | B16: c. | C16: HS/FA/09/00284 | D16: £3,200 | E16: Monitoring Cont. | F16: =D16 -> £3,200 | G16: £0 | H16: £0 | I16: £0 | J16: n/a
A17: 2010-11 | B17: c. | C17: HS/FA/09/00284 | D17: £78,921 | E17: Environmental Improvements | F17: =D17 -> £78,921 | G17: £0 | H17: £0 | I17: £0 | J17: n/a
A18: 2010-11 | B18: c. | C18: HS/FA/98/00106 | D18: £36,023 | E18: Play & Open Space Maintenance | F18: £24,081 | G18: £11,942 | H18: £0 | I18: £0 | J18: n/a
A19: 2011-12 | B19: d. | C19: HS/OA/01/00088 | D19: £100,000 | E19: Provision of Playground | F19: £100,000 | G19: £0 | H19: £0 | I19: £0 | J19: n/a
A20: 2011-12 | B20: d. | C20: HS/OA/01/00088 | D20: £50,000 | E20: Play & Open Space Maintenance | F20: £0 | G20: £0 | H20: £50,000 | I20: £0 | J20: n/a
A21: 2011-12 | B21: d. | C21: HS/OA/01/00088 | D21: £15,000 | E21: Nature Reserve | F21: £0 | G21: £15,000 | H21: £0 | I21: £0 | J21: n/a
A22: 2012-13 | B22: e. | D22: £900 | E22: Admin Fee | F22: £0 | G22: £0 | H22: £900 | I22: £0 | J22: n/a
A23: 2013-14 | B23: f. | C23: HS/FA/97/00619 | D23: £23,231 | E23: Open Space Maintenance | F23: £2,060 | G23: =D23-F23 -> £21,171 | H23: £0 | I23: £0 | J23: n/a
A24: 2013-14 | B24: f. | C24: HS/OA/06/686 / HS/DS/08/0562 | D24: £25,289 | E24: Maintenance of Protected Area | F24: £2,000 | G24: =D24-F24 -> £23,289 | H24: £0 | I24: £0 | J24: n/a
A25: 2014-15 | B25: g. | C25: HS/FA/00/00375 | D25: £21,360 | E25: Play Provision | F25: £0 | G25: £0 | H25: £21,360 | I25: £0 | J25: n/a
A26: 2014-15 | B26: g. | C26: HS/FA/00/00375 | D26: £39,940 | E26: Open Space Contribution | F26: £3,359 | G26: =D26-F26 -> £36,581 | H26: £0 | I26: £0 | J26: n/a
A27: 2014-15 | B27: g. | C27: HS/FA/03/00622 | D27: £69,789 | E27: Play & Open Space Maintenance | F27: £0 | G27: £0 | H27: =D27 -> £69,789 | I27: £0 | J27: n/a
A28: 2014-15 | B28: g. | C28: HS/FA/09/00485 | D28: £40,000 | E28: Play Provision | F28: £20,675 | G28: =D28-F28 -> £19,325 | H28: £0 | I28: £0 | J28: n/a
A29: 2014-15 | B29: g. | C29: HS/FA/09/00485 | D29: £10,000 | E29: Public Art Cont. | F29: £10,000 | G29: £0 | H29: £0 | I29: £0 | J29: n/a
A30: 2014-15 | B30: g. | C30: HS/FA/14/00616 | D30: £1,000 | E30: Affordable Housing Contribution | F30: £0 | G30: £0 | H30: £1,000 | I30: £0 | J30: n/a
A31: 2014-15 | B31: g. | C31: HS/OA/91/00787 | D31: £12,069 | E31: Play Provision | F31: £2,154 | G31: =D31-F31 -> £9,914 | H31: £0 | I31: £0 | J31: n/a
A32: 2014-15 | B32: g. | C32: HS/OA/91/00787 | D32: £8,187 | E32: Play Provision | F32: £612 | G32: =D32-F32 -> £7,574 | H32: £0 | I32: £0 | J32: n/a
A33: 2015-16 | B33: h. | C33: HS/FA/13/00377 | D33: £50,000 | E33: Affordable Housing Contribution | F33: £0 | G33: 0 | H33: £50,000 | I33: £0 | J33: n/a
A34: 2015-16 | B34: h. | C34: HS/FA/15/00521 | D34: £7,520 | E34: Affordable Housing Contribution | F34: £0 | G34: 0 | H34: =D34 -> £7,520 | I34: £0 | J34: n/a
A35: 2016-17 | B35: h. | C35: HS/FA/13/00916 | D35: £8,750 | E35: Affordable Housing Contribution | F35: £0 | G35: 0 | H35: =D35 -> £8,750 | I35: £0 | J35: n/a
A36: 2016-17 | B36: h. | C36: HS/FA/15/00579 | D36: £16,240 | E36: Affordable Housing Contribution | F36: £0 | G36: 0 | H36: =D36 -> £16,240 | I36: £0 | J36: n/a
D37: =SUM(D4:D36) -> £854,990 | F37: =SUM(F4:F36) -> £431,368 | G37: =SUM(G4:G36) -> £183,661 | H37: =SUM(H4:H36) -> £239,962 | I37: £0
A39: Unspent monies from income received before 2008-09
A41: Year | B41: FOI Ref | C41: App No. | D41: 1. Value of Payment | E41: 2. Purpose of Payment | F41: 3. Amount of Payment Spent | G41: 4. Amount comitted but not spent | H41: 5. Amount not comitted or spent | I41: 6. Amount Repaid | J41: 7. Reason for repayment
A42: 2007-08 | B42: i. | C42: HS/FA/00/00067 | D42: £66,159 | E42: Play & Open Space Maintenance | F42: £32,426 | G42: =D42-F42 -> £33,733 | H42: £0 | I42: £0 | J42: n/a
A43: 2007-08 | B43: i. | C43: HS/FA/03/00622 | D43: £193,292 | E43: Woodland / Open Space / Play | F43: =133862.72-25000 -> £108,863 | G43: £84,429 | H43: £0 | I43: £0 | J43: n/a
A44: 2007-08 | B44: i. | C44: HS/OA/01/00088 | D44: £50,000 | E44: Nature Reserve | F44: £8,890 | G44: £41,110 | H44: £0 | I44: £0 | J44: n/a
A45: 2004-05 | B45: i. | C45: HS/OA/02/0008 | D45: £70,000 | E45: Play & Open Space Maintenance | F45: £7,880 | G45: £62,120 | H45: £0 | I45: £0 | J45: n/a
A46: 2004-05 | B46: i. | C46: HS/OA/91/787 | D46: £3,933 | E46: Play & Open Space Maintenance | F46: £2,672 | G46: £1,262 | H46: £0 | I46: £0 | J46: n/a
A47: 2004-05 | B47: i. | C47: HS/OA/91/787 | D47: £7,280 | E47: Play & Open Space Maintenance | F47: £4,836 | G47: £2,444 | H47: £0 | I47: £0 | J47: n/a
D48: =SUM(D42:D47) -> £390,664 | F48: =SUM(F42:F47) -> £165,567 | G48: £225,098 | H48: £0 | I48: £0

Sheet Sheet2

Sheet Sheet3
